[Event "November 21 Late 2023"]
[Site "https://www.chess.com"]
[Date "2023.11.21"]
[Round "7"]
[White "Demchenko, Anton"]
[Black "Osmak, Yuliia"]
[Result "1-0"]
[Board "59"]
[TimeControl "180+1"]
[WhiteFideId "4160258"]
[BlackFideId "14101602"]
[WhiteElo "2545"]
[BlackElo "2303"]
[WhiteTeam "SLO"]
[BlackTeam "UKR"]
[WhiteClock "0:00:27"]
[BlackClock "0:00:19"]

1. e4 {[%clk 0:03:00]}  c6 {[%clk 0:02:57]} 2. d4 {[%clk 0:03:00]}  d5 {[%clk 0:02:58]} 3. e5 {[%clk 0:03:01]}  Bf5 {[%clk 0:02:57]} 4. Bd3 {[%clk 0:03:01]}  Bxd3 {[%clk 0:02:55]} 5. Qxd3 {[%clk 0:03:02]}  e6 {[%clk 0:02:55]} 6. c3 {[%clk 0:03:03]}  Qb6 {[%clk 0:02:44]} 7. Ne2 {[%clk 0:03:04]}  Qa6 {[%clk 0:02:43]} 8. Qd1 {[%clk 0:03:04]}  c5 {[%clk 0:02:41]} 9. O-O {[%clk 0:03:05]}  Nc6 {[%clk 0:02:40]} 10. Be3 {[%clk 0:03:04]}  Nge7 {[%clk 0:02:39]} 11. Ng3 {[%clk 0:03:04]}  cxd4 {[%clk 0:02:13]} 12. cxd4 {[%clk 0:03:05]}  Nc8 {[%clk 0:02:13]} 13. Nh5 {[%clk 0:02:58]}  Nb6 {[%clk 0:02:11]} 14. Nd2 {[%clk 0:02:52]}  Qd3 {[%clk 0:02:07]} 15. Rc1 {[%clk 0:02:49]}  Nxd4 {[%clk 0:01:57]} 16. Nf4 {[%clk 0:02:33]}  Qf5 {[%clk 0:01:44]} 17. Nxd5 {[%clk 0:01:48]}  Nxd5 {[%clk 0:01:42]} 18. Bxd4 {[%clk 0:01:49]}  Be7 {[%clk 0:01:40]} 19. Qa4+ {[%clk 0:01:48]}  Kf8 {[%clk 0:01:35]} 20. Qd7 {[%clk 0:01:19]}  g6 {[%clk 0:01:28]} 21. Nc4 {[%clk 0:01:10]}  Nf4 {[%clk 0:01:09]} 22. Qxb7 {[%clk 0:00:34]}  Rd8 {[%clk 0:00:56]} 23. Be3 {[%clk 0:00:26]}  Ne2+ {[%clk 0:00:54]} 24. Kh1 {[%clk 0:00:26]}  Nxc1 {[%clk 0:00:54]} 25. Bh6+ {[%clk 0:00:27]}  Ke8 {[%clk 0:00:37]} 26. Nd6+ {[%clk 0:00:27]}  Bxd6 {[%clk 0:00:33]} 27. exd6 {[%clk 0:00:27]}  Nd3 {[%clk 0:00:19]} 28. Qe7# {[%clk 0:00:27]} 1-0

[Event "November 21 Late 2023"]
[Site "https://www.chess.com"]
[Date "2023.11.21"]
[Round "7"]
[White "Ongut, Tamas Gunes"]
[Black "Maksimovic, Bojan"]
[Result "1/2-1/2"]
[Board "60"]
[TimeControl "180+1"]
[WhiteFideId "770280"]
[BlackFideId "14408120"]
[WhiteElo "2148"]
[BlackElo "2546"]
[WhiteTeam "HUN"]
[BlackTeam "BIH"]
[WhiteClock "0:01:22"]
[BlackClock "0:00:05"]

1. e4 {[%clk 0:02:55]}  c5 {[%clk 0:02:59]} 2. Nf3 {[%clk 0:02:55]}  e6 {[%clk 0:03:00]} 3. c3 {[%clk 0:02:55]}  d5 {[%clk 0:03:00]} 4. exd5 {[%clk 0:02:55]}  Qxd5 {[%clk 0:03:01]} 5. d4 {[%clk 0:02:56]}  Nf6 {[%clk 0:03:02]} 6. Na3 {[%clk 0:02:55]}  Nc6 {[%clk 0:03:03]} 7. Nb5 {[%clk 0:02:54]}  Qd8 {[%clk 0:03:03]} 8. dxc5 {[%clk 0:02:42]}  Bxc5 {[%clk 0:03:04]} 9. Qxd8+ {[%clk 0:02:41]}  Kxd8 {[%clk 0:03:05]} 10. Bf4 {[%clk 0:02:39]}  Ne4 {[%clk 0:03:06]} 11. Nbd4 {[%clk 0:02:29]}  Bd7 {[%clk 0:02:27]} 12. Bd3 {[%clk 0:02:26]}  Nf6 {[%clk 0:02:25]} 13. Ne5 {[%clk 0:02:20]}  Bxd4 {[%clk 0:02:08]} 14. cxd4 {[%clk 0:02:14]}  Ke7 {[%clk 0:02:08]} 15. Nc4 {[%clk 0:02:14]}  Ne8 {[%clk 0:01:52]} 16. O-O-O {[%clk 0:02:10]}  Nxd4 {[%clk 0:01:48]} 17. Be3 {[%clk 0:02:10]}  Rc8 {[%clk 0:01:38]} 18. Kb1 {[%clk 0:02:04]}  Nb5 {[%clk 0:01:30]} 19. Ne5 {[%clk 0:02:03]}  Ned6 {[%clk 0:01:14]} 20. a4 {[%clk 0:02:01]}  Nc7 {[%clk 0:01:14]} 21. Bc5 {[%clk 0:01:56]}  Nd5 {[%clk 0:01:14]} 22. Bxd6+ {[%clk 0:01:55]}  Kxd6 {[%clk 0:01:14]} 23. Nxf7+ {[%clk 0:01:56]}  Ke7 {[%clk 0:01:15]} 24. Nxh8 {[%clk 0:01:57]}  Rxh8 {[%clk 0:01:15]} 25. Be4 {[%clk 0:01:53]}  Bc6 {[%clk 0:01:15]} 26. Rhe1 {[%clk 0:01:50]}  Kd6 {[%clk 0:01:15]} 27. Bxd5 {[%clk 0:01:49]}  Bxd5 {[%clk 0:01:16]} 28. f4 {[%clk 0:01:46]}  Rf8 {[%clk 0:01:16]} 29. g3 {[%clk 0:01:46]}  h6 {[%clk 0:01:14]} 30. h4 {[%clk 0:01:40]}  g5 {[%clk 0:01:14]} 31. hxg5 {[%clk 0:01:40]}  hxg5 {[%clk 0:01:14]} 32. fxg5 {[%clk 0:01:41]}  Rg8 {[%clk 0:01:14]} 33. Rd4 {[%clk 0:01:40]}  Rxg5 {[%clk 0:01:14]} 34. Re3 {[%clk 0:01:40]}  Rg8 {[%clk 0:01:14]} 35. g4 {[%clk 0:01:39]}  a5 {[%clk 0:01:12]} 36. b4 {[%clk 0:01:37]}  e5 {[%clk 0:01:06]} 37. Rd2 {[%clk 0:01:38]}  Rxg4 {[%clk 0:01:06]} 38. Red3 {[%clk 0:01:38]}  Rxb4+ {[%clk 0:01:07]} 39. Kc1 {[%clk 0:01:38]}  Rc4+ {[%clk 0:01:07]} 40. Kb2 {[%clk 0:01:37]}  Rb4+ {[%clk 0:01:06]} 41. Kc1 {[%clk 0:01:36]}  Rc4+ {[%clk 0:01:06]} 42. Kb2 {[%clk 0:01:37]}  Rc5 {[%clk 0:01:06]} 43. Rc3 {[%clk 0:01:36]}  e4 {[%clk 0:00:45]} 44. Rh2 {[%clk 0:01:32]}  Rxc3 {[%clk 0:00:27]} 45. Kxc3 {[%clk 0:01:33]}  Bc6 {[%clk 0:00:23]} 46. Kd4 {[%clk 0:01:31]}  Bxa4 {[%clk 0:00:20]} 47. Rh6+ {[%clk 0:01:31]}  Kc7 {[%clk 0:00:20]} 48. Kxe4 {[%clk 0:01:32]}  Bc6+ {[%clk 0:00:19]} 49. Kd4 {[%clk 0:01:33]}  Kb6 {[%clk 0:00:19]} 50. Kc4 {[%clk 0:01:31]}  Kc7 {[%clk 0:00:16]} 51. Rh7+ {[%clk 0:01:29]}  Bd7 {[%clk 0:00:17]} 52. Rh6 {[%clk 0:01:26]}  b6 {[%clk 0:00:17]} 53. Rf6 {[%clk 0:01:26]}  Ba4 {[%clk 0:00:16]} 54. Rh6 {[%clk 0:01:25]}  Kb7 {[%clk 0:00:17]} 55. Rh7+ {[%clk 0:01:24]}  Ka6 {[%clk 0:00:17]} 56. Rh6 {[%clk 0:01:25]}  Bc2 {[%clk 0:00:18]} 57. Kc3 {[%clk 0:01:24]}  Bf5 {[%clk 0:00:18]} 58. Rh5 {[%clk 0:01:24]}  Be6 {[%clk 0:00:17]} 59. Re5 {[%clk 0:01:24]}  Ba2 {[%clk 0:00:18]} 60. Rg5 {[%clk 0:01:23]}  Bf7 {[%clk 0:00:15]} 61. Rg7 {[%clk 0:01:23]}  Ba2 {[%clk 0:00:14]} 62. Rg5 {[%clk 0:01:23]}  b5 {[%clk 0:00:14]} 63. Rg6+ {[%clk 0:01:23]}  Kb7 {[%clk 0:00:14]} 64. Kd4 {[%clk 0:01:24]}  b4 {[%clk 0:00:13]} 65. Kc5 {[%clk 0:01:23]}  b3 {[%clk 0:00:09]} 66. Rb6+ {[%clk 0:01:22]}  Kc7 {[%clk 0:00:09]} 67. Kb5 {[%clk 0:01:22]}  b2 {[%clk 0:00:03]} 68. Kxa5 {[%clk 0:01:21]}  b1=Q {[%clk 0:00:04]} 69. Rxb1 {[%clk 0:01:22]}  Bxb1 {[%clk 0:00:05]} 1/2-1/2

[Event "November 21 Late 2023"]
[Site "https://www.chess.com"]
[Date "2023.11.21"]
[Round "7"]
[White "Zarnicki, Pablo"]
[Black "Kovalevsky, Stanislav"]
[Result "0-1"]
[Board "64"]
[TimeControl "180+1"]
[WhiteFideId "100137"]
[BlackFideId "13508598"]
[WhiteElo "2468"]
[BlackElo "2092"]
[WhiteTeam "ARG"]
[BlackTeam "FID"]
[WhiteClock "0:00:00"]
[BlackClock "0:00:03"]

1. e4 {[%clk 0:03:00]}  c6 {[%clk 0:03:00]} 2. d4 {[%clk 0:03:00]}  d5 {[%clk 0:03:01]} 3. Nc3 {[%clk 0:03:00]}  dxe4 {[%clk 0:02:57]} 4. Nxe4 {[%clk 0:03:01]}  Nf6 {[%clk 0:02:55]} 5. Nxf6+ {[%clk 0:03:00]}  exf6 {[%clk 0:02:55]} 6. Bc4 {[%clk 0:03:01]}  Be6 {[%clk 0:02:53]} 7. Bxe6 {[%clk 0:02:58]}  fxe6 {[%clk 0:02:54]} 8. Nf3 {[%clk 0:02:58]}  Bd6 {[%clk 0:02:46]} 9. O-O {[%clk 0:02:54]}  O-O {[%clk 0:02:45]} 10. Re1 {[%clk 0:02:55]}  Re8 {[%clk 0:02:45]} 11. Qd3 {[%clk 0:02:54]}  Na6 {[%clk 0:02:43]} 12. Qb3 {[%clk 0:02:51]}  Qd7 {[%clk 0:02:38]} 13. c3 {[%clk 0:02:50]}  Nc7 {[%clk 0:02:34]} 14. a4 {[%clk 0:02:45]}  a5 {[%clk 0:02:29]} 15. Nd2 {[%clk 0:02:40]}  Nd5 {[%clk 0:02:22]} 16. Ne4 {[%clk 0:02:28]}  Bf8 {[%clk 0:02:21]} 17. Bd2 {[%clk 0:02:21]}  h6 {[%clk 0:02:17]} 18. Re2 {[%clk 0:02:09]}  Kh8 {[%clk 0:02:13]} 19. Rae1 {[%clk 0:02:06]}  e5 {[%clk 0:01:52]} 20. Ng3 {[%clk 0:01:32]}  Bd6 {[%clk 0:01:20]} 21. c4 {[%clk 0:01:18]}  Nf4 {[%clk 0:01:12]} 22. Bxf4 {[%clk 0:01:06]}  exf4 {[%clk 0:01:11]} 23. Ne4 {[%clk 0:01:02]}  Bb4 {[%clk 0:01:08]} 24. Rd1 {[%clk 0:00:44]}  Re7 {[%clk 0:00:31]} 25. Nc3 {[%clk 0:00:17]}  Rae8 {[%clk 0:00:13]} 26. Rxe7 {[%clk 0:00:13]}  Rxe7 {[%clk 0:00:13]} 27. d5 {[%clk 0:00:10]}  Qg4 {[%clk 0:00:09]} 28. f3 {[%clk 0:00:08]}  Qh4 {[%clk 0:00:05]} 29. Ne4 {[%clk 0:00:01]}  f5 {[%clk 0:00:05]} 30. d6 {[%clk 0:00:00]}  Bxd6 {[%clk 0:00:03]} 0-1

[Event "November 21 Late 2023"]
[Site "https://www.chess.com"]
[Date "2023.11.21"]
[Round "7"]
[White "Janaszak, Dawid"]
[Black "ATM622"]
[Result "1/2-1/2"]
[Board "65"]
[TimeControl "180+1"]
[WhiteFideId "1119206"]
[WhiteElo "2218"]
[BlackElo "2461"]
[WhiteTeam "POL"]
[WhiteClock "0:00:09"]
[BlackClock "0:00:05"]

1. c4 {[%clk 0:03:00]}  e5 {[%clk 0:02:58]} 2. Nc3 {[%clk 0:03:01]}  f5 {[%clk 0:02:58]} 3. g4 {[%clk 0:02:59]}  d6 {[%clk 0:02:51]} 4. gxf5 {[%clk 0:02:57]}  Bxf5 {[%clk 0:02:46]} 5. Bg2 {[%clk 0:02:56]}  c6 {[%clk 0:02:45]} 6. e3 {[%clk 0:02:50]}  Nf6 {[%clk 0:02:44]} 7. Nge2 {[%clk 0:02:51]}  Be7 {[%clk 0:02:41]} 8. Ng3 {[%clk 0:02:49]}  Bd3 {[%clk 0:02:36]} 9. Qb3 {[%clk 0:02:30]}  Qb6 {[%clk 0:02:32]} 10. Nd5 {[%clk 0:02:19]}  Qxb3 {[%clk 0:02:09]} 11. Nxf6+ {[%clk 0:02:19]}  Bxf6 {[%clk 0:02:05]} 12. axb3 {[%clk 0:02:19]}  Bc2 {[%clk 0:01:56]} 13. b4 {[%clk 0:02:09]}  O-O {[%clk 0:01:25]} 14. b5 {[%clk 0:02:07]}  Bd3 {[%clk 0:01:20]} 15. bxc6 {[%clk 0:01:54]}  Nxc6 {[%clk 0:01:15]} 16. b3 {[%clk 0:01:52]}  Nb4 {[%clk 0:01:13]} 17. Ra4 {[%clk 0:01:42]}  a5 {[%clk 0:00:52]} 18. Bxb7 {[%clk 0:01:37]}  Rab8 {[%clk 0:00:52]} 19. Be4 {[%clk 0:01:38]}  Bh4 {[%clk 0:00:42]} 20. Rxb4 {[%clk 0:01:19]}  Rxb4 {[%clk 0:00:42]} 21. Bxd3 {[%clk 0:01:17]}  Rxb3 {[%clk 0:00:42]} 22. Bc2 {[%clk 0:01:12]}  Rb4 {[%clk 0:00:41]} 23. d3 {[%clk 0:01:12]}  Be7 {[%clk 0:00:25]} 24. Ba3 {[%clk 0:01:09]}  Rb7 {[%clk 0:00:20]} 25. Ne4 {[%clk 0:00:58]}  Rc8 {[%clk 0:00:19]} 26. Nc3 {[%clk 0:00:54]}  d5 {[%clk 0:00:12]} 27. Bxe7 {[%clk 0:00:53]}  dxc4 {[%clk 0:00:11]} 28. Kd2 {[%clk 0:00:24]}  cxd3 {[%clk 0:00:07]} 29. Rb1 {[%clk 0:00:14]}  Rxe7 {[%clk 0:00:05]} 30. Bxd3 {[%clk 0:00:13]}  Rd7 {[%clk 0:00:04]} 31. Na4 {[%clk 0:00:10]}  Rcd8 {[%clk 0:00:04]} 32. Nc5 {[%clk 0:00:11]}  Rd5 {[%clk 0:00:03]} 33. Rb5 {[%clk 0:00:11]}  e4 {[%clk 0:00:03]} 34. Rxa5 {[%clk 0:00:08]}  exd3 {[%clk 0:00:03]} 35. e4 {[%clk 0:00:08]}  Rd4 {[%clk 0:00:03]} 36. f3 {[%clk 0:00:07]}  Rc4 {[%clk 0:00:03]} 37. Nb3 {[%clk 0:00:07]}  Rc2+ {[%clk 0:00:03]} 38. Kd1 {[%clk 0:00:07]}  Rxh2 {[%clk 0:00:03]} 39. Rd5 {[%clk 0:00:04]}  Rxd5 {[%clk 0:00:03]} 40. exd5 {[%clk 0:00:04]}  Kf7 {[%clk 0:00:03]} 41. Nc5 {[%clk 0:00:05]}  Kf6 {[%clk 0:00:03]} 42. Ne4+ {[%clk 0:00:06]}  Ke5 {[%clk 0:00:03]} 43. d6 {[%clk 0:00:07]}  Ke6 {[%clk 0:00:03]} 44. f4 {[%clk 0:00:05]}  Re2 {[%clk 0:00:02]} 45. f5+ {[%clk 0:00:05]}  Kd7 {[%clk 0:00:02]} 46. f6 {[%clk 0:00:04]}  gxf6 {[%clk 0:00:02]} 47. Nxf6+ {[%clk 0:00:03]}  Kxd6 {[%clk 0:00:02]} 48. Nxh7 {[%clk 0:00:04]}  Ke7 {[%clk 0:00:02]} 49. Ng5 {[%clk 0:00:04]}  Rg2 {[%clk 0:00:02]} 50. Ne4 {[%clk 0:00:05]}  Ke6 {[%clk 0:00:02]} 51. Nc5+ {[%clk 0:00:05]}  Kd5 {[%clk 0:00:02]} 52. Nxd3 {[%clk 0:00:06]}  Kd4 {[%clk 0:00:03]} 53. Ne1 {[%clk 0:00:05]}  Ra2 {[%clk 0:00:03]} 54. Nc2+ {[%clk 0:00:05]}  Kc3 {[%clk 0:00:03]} 55. Ne1 {[%clk 0:00:05]}  Rd2+ {[%clk 0:00:03]} 56. Kc1 {[%clk 0:00:05]}  Rd5 {[%clk 0:00:03]} 57. Nf3 {[%clk 0:00:04]}  Rf5 {[%clk 0:00:03]} 58. Ne1 {[%clk 0:00:05]}  Rf2 {[%clk 0:00:03]} 59. Kd1 {[%clk 0:00:05]}  Rd2+ {[%clk 0:00:03]} 60. Kc1 {[%clk 0:00:05]}  Re2 {[%clk 0:00:02]} 61. Kd1 {[%clk 0:00:05]}  Rf2 {[%clk 0:00:03]} 62. Kc1 {[%clk 0:00:05]}  Kd4 {[%clk 0:00:02]} 63. Kd1 {[%clk 0:00:05]}  Kc3 {[%clk 0:00:02]} 64. Kc1 {[%clk 0:00:04]}  Rf8 {[%clk 0:00:03]} 65. Kd1 {[%clk 0:00:05]}  Re8 {[%clk 0:00:04]} 66. Nf3 {[%clk 0:00:05]}  Re3 {[%clk 0:00:04]} 67. Ne1 {[%clk 0:00:04]}  Rg3 {[%clk 0:00:03]} 68. Ke2 {[%clk 0:00:05]}  Rg8 {[%clk 0:00:03]} 69. Nf3 {[%clk 0:00:05]}  Rf8 {[%clk 0:00:03]} 70. Ke3 {[%clk 0:00:05]}  Re8+ {[%clk 0:00:03]} 71. Kf4 {[%clk 0:00:06]}  Kd3 {[%clk 0:00:03]} 72. Ne5+ {[%clk 0:00:06]}  Kd4 {[%clk 0:00:04]} 73. Nf3+ {[%clk 0:00:07]}  Kd5 {[%clk 0:00:04]} 74. Ng5 {[%clk 0:00:07]}  Rf8+ {[%clk 0:00:04]} 75. Ke3 {[%clk 0:00:08]}  Ke5 {[%clk 0:00:04]} 76. Nf3+ {[%clk 0:00:08]}  Kd5 {[%clk 0:00:04]} 77. Ng5 {[%clk 0:00:09]}  Rf5 {[%clk 0:00:05]} 78. Nf3 {[%clk 0:00:09]}  Rf8 {[%clk 0:00:05]} 79. Ng5 {[%clk 0:00:09]} 1/2-1/2

[Event "November 21 Late 2023"]
[Site "https://www.chess.com"]
[Date "2023.11.21"]
[Round "7"]
[White "Weisz, Bryan"]
[Black "Tikhonov, Viacheslav"]
[Result "1-0"]
[Board "67"]
[TimeControl "180+1"]
[WhiteFideId "30934133"]
[BlackFideId "44196407"]
[WhiteElo "2451"]
[BlackElo "2191"]
[WhiteTeam "USA"]
[BlackTeam "RUS"]
[WhiteClock "0:00:06"]
[BlackClock "0:00:00"]

1. e4 {[%clk 0:03:00]}  c5 {[%clk 0:03:00]} 2. Nf3 {[%clk 0:02:59]}  g6 {[%clk 0:03:00]} 3. d4 {[%clk 0:02:59]}  cxd4 {[%clk 0:03:01]} 4. Nxd4 {[%clk 0:02:58]}  Nc6 {[%clk 0:03:01]} 5. Nc3 {[%clk 0:02:58]}  Bg7 {[%clk 0:03:01]} 6. Be3 {[%clk 0:02:53]}  Nf6 {[%clk 0:03:02]} 7. Nxc6 {[%clk 0:02:51]}  bxc6 {[%clk 0:03:03]} 8. e5 {[%clk 0:02:52]}  Ng8 {[%clk 0:03:02]} 9. f4 {[%clk 0:02:51]}  f6 {[%clk 0:03:01]} 10. Bd4 {[%clk 0:02:52]}  fxe5 {[%clk 0:03:01]} 11. fxe5 {[%clk 0:02:52]}  Qa5 {[%clk 0:03:01]} 12. e6 {[%clk 0:02:41]}  Nf6 {[%clk 0:02:48]} 13. exd7+ {[%clk 0:02:36]}  Bxd7 {[%clk 0:02:49]} 14. Bc4 {[%clk 0:02:31]}  e5 {[%clk 0:02:39]} 15. Be3 {[%clk 0:02:08]}  O-O-O {[%clk 0:02:10]} 16. O-O {[%clk 0:01:36]}  Bf5 {[%clk 0:01:43]} 17. Qf3 {[%clk 0:01:33]}  Qc7 {[%clk 0:01:32]} 18. Na4 {[%clk 0:01:18]}  Be4 {[%clk 0:01:07]} 19. Qe2 {[%clk 0:01:06]}  Bd5 {[%clk 0:00:53]} 20. Ba6+ {[%clk 0:01:02]}  Kb8 {[%clk 0:00:51]} 21. Nc5 {[%clk 0:01:03]}  Ne4 {[%clk 0:00:24]} 22. Nxe4 {[%clk 0:00:47]}  Bxe4 {[%clk 0:00:25]} 23. Bg5 {[%clk 0:00:46]}  Rd7 {[%clk 0:00:25]} 24. Kh1 {[%clk 0:00:38]}  Bf5 {[%clk 0:00:19]} 25. a4 {[%clk 0:00:33]}  Ka8 {[%clk 0:00:15]} 26. Ra3 {[%clk 0:00:32]}  Rb8 {[%clk 0:00:15]} 27. Rc3 {[%clk 0:00:26]}  Qd6 {[%clk 0:00:11]} 28. Be3 {[%clk 0:00:16]}  Rxb2 {[%clk 0:00:10]} 29. Bc5 {[%clk 0:00:16]}  Qd2 {[%clk 0:00:07]} 30. Qc4 {[%clk 0:00:15]}  Rxc2 {[%clk 0:00:04]} 31. Qg8+ {[%clk 0:00:13]}  Rd8 {[%clk 0:00:04]} 32. Rxc2 {[%clk 0:00:08]}  Bxc2 {[%clk 0:00:05]} 33. Qxg7 {[%clk 0:00:08]}  Rb8 {[%clk 0:00:00]} 34. Qc7 {[%clk 0:00:06]} 1-0

[Event "November 21 Late 2023"]
[Site "https://www.chess.com"]
[Date "2023.11.21"]
[Round "7"]
[White "Sanchez Alvares, Kelvin Antonio"]
[Black "Martins, Vinicius Tine"]
[Result "1-0"]
[Board "70"]
[TimeControl "180+1"]
[WhiteFideId "3906680"]
[BlackFideId "2112884"]
[WhiteElo "2217"]
[BlackElo "2373"]
[WhiteTeam "VEN"]
[BlackTeam "BRA"]
[WhiteClock "0:01:58"]
[BlackClock "0:01:04"]

1. e4 {[%clk 0:02:55]}  d6 {[%clk 0:02:59]} 2. d4 {[%clk 0:02:53]}  Nf6 {[%clk 0:03:00]} 3. Nc3 {[%clk 0:02:53]}  g6 {[%clk 0:03:00]} 4. f4 {[%clk 0:02:53]}  Bg7 {[%clk 0:02:57]} 5. Nf3 {[%clk 0:02:52]}  c5 {[%clk 0:02:50]} 6. Bb5+ {[%clk 0:02:49]}  Bd7 {[%clk 0:02:44]} 7. e5 {[%clk 0:02:49]}  Ng4 {[%clk 0:02:02]} 8. e6 {[%clk 0:02:48]}  fxe6 {[%clk 0:01:58]} 9. Ng5 {[%clk 0:02:43]}  Bxb5 {[%clk 0:01:46]} 10. Qxg4 {[%clk 0:02:20]}  Bxd4 {[%clk 0:01:36]} 11. Nxe6 {[%clk 0:02:15]}  Bxc3+ {[%clk 0:01:35]} 12. bxc3 {[%clk 0:02:15]}  Qd7 {[%clk 0:01:14]} 13. f5 {[%clk 0:02:02]}  Bc4 {[%clk 0:01:04]} 14. Qxc4 {[%clk 0:01:58]} 1-0

[Event "November 21 Late 2023"]
[Site "https://www.chess.com"]
[Date "2023.11.21"]
[Round "7"]
[White "Hajiyev, Kanan"]
[Black "Novikova, Galina"]
[Result "1-0"]
[Board "71"]
[TimeControl "180+1"]
[WhiteFideId "13404148"]
[BlackFideId "4157095"]
[WhiteElo "2102"]
[BlackElo "1972"]
[WhiteTeam "AZE"]
[BlackTeam "RUS"]
[WhiteClock "0:01:39"]
[BlackClock "0:00:00"]

1. d4 {[%clk 0:03:00]}  Nf6 {[%clk 0:02:58]} 2. Nf3 {[%clk 0:03:01]}  g6 {[%clk 0:02:58]} 3. c4 {[%clk 0:03:02]}  Bg7 {[%clk 0:02:59]} 4. g3 {[%clk 0:03:03]}  d6 {[%clk 0:02:59]} 5. Bg2 {[%clk 0:03:04]}  O-O {[%clk 0:02:59]} 6. O-O {[%clk 0:03:05]}  c6 {[%clk 0:02:54]} 7. b3 {[%clk 0:03:05]}  Bf5 {[%clk 0:02:53]} 8. Bb2 {[%clk 0:03:05]}  Qc8 {[%clk 0:02:53]} 9. Re1 {[%clk 0:03:05]}  Bh3 {[%clk 0:02:53]} 10. e4 {[%clk 0:03:05]}  Bxg2 {[%clk 0:02:53]} 11. Kxg2 {[%clk 0:03:06]}  Nbd7 {[%clk 0:02:44]} 12. e5 {[%clk 0:03:05]}  Nh5 {[%clk 0:02:40]} 13. Qd2 {[%clk 0:02:57]}  dxe5 {[%clk 0:02:00]} 14. dxe5 {[%clk 0:02:58]}  Nc5 {[%clk 0:02:00]} 15. Qe3 {[%clk 0:02:45]}  b6 {[%clk 0:01:43]} 16. h3 {[%clk 0:02:45]}  Ne6 {[%clk 0:01:36]} 17. Nbd2 {[%clk 0:02:39]}  Qc7 {[%clk 0:01:28]} 18. Ne4 {[%clk 0:02:37]}  Rad8 {[%clk 0:01:27]} 19. Neg5 {[%clk 0:02:30]}  Nxg5 {[%clk 0:01:21]} 20. Nxg5 {[%clk 0:02:30]}  h6 {[%clk 0:01:12]} 21. Nf3 {[%clk 0:02:26]}  g5 {[%clk 0:00:51]} 22. Nxg5 {[%clk 0:02:04]}  hxg5 {[%clk 0:00:47]} 23. Qxg5 {[%clk 0:02:05]}  Nxg3 {[%clk 0:00:45]} 24. Qxg3 {[%clk 0:01:54]}  Rd2 {[%clk 0:00:41]} 25. Bc3 {[%clk 0:01:54]}  Rfd8 {[%clk 0:00:14]} 26. Re4 {[%clk 0:01:48]}  R8d3 {[%clk 0:00:10]} 27. Re3 {[%clk 0:01:48]}  Rxe3 {[%clk 0:00:09]} 28. Qxe3 {[%clk 0:01:49]}  Rd8 {[%clk 0:00:06]} 29. Rg1 {[%clk 0:01:49]}  Kf8 {[%clk 0:00:05]} 30. Kh1 {[%clk 0:01:49]}  Qd7 {[%clk 0:00:06]} 31. Qg3 {[%clk 0:01:47]}  Ke8 {[%clk 0:00:02]} 32. e6 {[%clk 0:01:39]}  Qxe6 {[%clk 0:00:00]} 33. Bxg7 {[%clk 0:01:39]} 1-0

[Event "November 21 Late 2023"]
[Site "https://www.chess.com"]
[Date "2023.11.21"]
[Round "7"]
[White "Ferreira, Vitor Hugo Vieira"]
[Black "szachmistrz2500"]
[Result "0-1"]
[Board "75"]
[TimeControl "180+1"]
[WhiteFideId "2119765"]
[WhiteElo "2123"]
[BlackElo "2428"]
[WhiteTeam "BRA"]
[WhiteClock "0:00:08"]
[BlackClock "0:00:12"]

1. d4 {[%clk 0:02:55]}  d5 {[%clk 0:02:58]} 2. c4 {[%clk 0:02:54]}  c6 {[%clk 0:02:58]} 3. Nf3 {[%clk 0:02:54]}  Nf6 {[%clk 0:02:58]} 4. Nc3 {[%clk 0:02:53]}  dxc4 {[%clk 0:02:57]} 5. a4 {[%clk 0:02:50]}  Bf5 {[%clk 0:02:55]} 6. e3 {[%clk 0:02:50]}  e6 {[%clk 0:02:54]} 7. Bxc4 {[%clk 0:02:50]}  Bb4 {[%clk 0:02:54]} 8. O-O {[%clk 0:02:50]}  O-O {[%clk 0:02:53]} 9. Qe2 {[%clk 0:02:48]}  Ne4 {[%clk 0:02:51]} 10. Bd3 {[%clk 0:02:09]}  Nxc3 {[%clk 0:02:35]} 11. bxc3 {[%clk 0:02:09]}  Bxc3 {[%clk 0:02:35]} 12. Rb1 {[%clk 0:02:07]}  Bxd3 {[%clk 0:02:25]} 13. Qxd3 {[%clk 0:02:07]}  Ba5 {[%clk 0:02:25]} 14. Rxb7 {[%clk 0:02:03]}  Bb6 {[%clk 0:02:25]} 15. a5 {[%clk 0:02:01]}  Bxa5 {[%clk 0:02:19]} 16. Rb3 {[%clk 0:01:59]}  Nd7 {[%clk 0:02:17]} 17. h4 {[%clk 0:01:57]}  h6 {[%clk 0:02:14]} 18. e4 {[%clk 0:01:52]}  Rb8 {[%clk 0:02:11]} 19. Ra3 {[%clk 0:01:47]}  Bb6 {[%clk 0:02:02]} 20. Bf4 {[%clk 0:01:46]}  Rc8 {[%clk 0:01:59]} 21. Rc1 {[%clk 0:01:43]}  Qe7 {[%clk 0:01:56]} 22. Rac3 {[%clk 0:01:40]}  c5 {[%clk 0:01:34]} 23. d5 {[%clk 0:01:41]}  e5 {[%clk 0:01:31]} 24. d6 {[%clk 0:01:38]}  Qe6 {[%clk 0:01:25]} 25. Be3 {[%clk 0:01:36]}  Rc6 {[%clk 0:01:24]} 26. Rd1 {[%clk 0:01:34]}  c4 {[%clk 0:01:22]} 27. Qd2 {[%clk 0:01:23]}  Ba5 {[%clk 0:01:21]} 28. Qd5 {[%clk 0:01:12]}  Qxd5 {[%clk 0:01:15]} 29. exd5 {[%clk 0:01:12]}  Rxd6 {[%clk 0:01:02]} 30. Rxc4 {[%clk 0:01:11]}  Bb6 {[%clk 0:01:01]} 31. Bc1 {[%clk 0:01:07]}  Rf6 {[%clk 0:00:43]} 32. Ba3 {[%clk 0:00:56]}  Re8 {[%clk 0:00:43]} 33. Rc6 {[%clk 0:00:52]}  Rf4 {[%clk 0:00:32]} 34. Rd2 {[%clk 0:00:38]}  e4 {[%clk 0:00:31]} 35. Nd4 {[%clk 0:00:36]}  e3 {[%clk 0:00:31]} 36. fxe3 {[%clk 0:00:32]}  Rxe3 {[%clk 0:00:31]} 37. Bb2 {[%clk 0:00:30]}  Ree4 {[%clk 0:00:26]} 38. g3 {[%clk 0:00:27]}  Bxd4+ {[%clk 0:00:24]} 39. Kg2 {[%clk 0:00:24]}  Rg4 {[%clk 0:00:17]} 40. Rc8+ {[%clk 0:00:18]}  Kh7 {[%clk 0:00:17]} 41. Bc1 {[%clk 0:00:18]}  Be3 {[%clk 0:00:15]} 42. Rdc2 {[%clk 0:00:15]}  Bxc1 {[%clk 0:00:15]} 43. Rxc1 {[%clk 0:00:16]}  Rd4 {[%clk 0:00:15]} 44. R1c7 {[%clk 0:00:16]}  Rxd5 {[%clk 0:00:15]} 45. Rxa7 {[%clk 0:00:14]}  h5 {[%clk 0:00:14]} 46. Rd8 {[%clk 0:00:14]}  Rgd4 {[%clk 0:00:14]} 47. Raa8 {[%clk 0:00:12]}  Kg6 {[%clk 0:00:14]} 48. Ra6+ {[%clk 0:00:12]}  Nf6 {[%clk 0:00:14]} 49. Rb8 {[%clk 0:00:06]}  Rd2+ {[%clk 0:00:13]} 50. Kf3 {[%clk 0:00:07]}  R5d3+ {[%clk 0:00:13]} 51. Kf4 {[%clk 0:00:07]}  Rf2+ {[%clk 0:00:12]} 52. Ke5 {[%clk 0:00:08]}  Re2+ {[%clk 0:00:12]} 53. Kf4 {[%clk 0:00:08]}  Re4# {[%clk 0:00:12]} 0-1